[Event "Late-Titled-Tuesday-Blitz-March-19-2024"]
[Site "Chess.com"]
[Date "2024.03.19"]
[Round "6"]
[White "Piriflillo"]
[Black "dennisodessa"]
[Result "0-1"]
[WhiteElo "2368"]
[BlackElo "2527"]
[TimeControl "180+1"]
[EndTime "15:07:43 PDT"]
[Termination "dennisodessa won by resignation"]

1. Nf3 {[%clk 0:03:00.9]} 1... e6 {[%clk 0:03:00.9]} 2. b3 {[%clk 0:03:00.9]}
2... Nf6 {[%clk 0:03:01.2]} 3. Bb2 {[%clk 0:03:01.3]} 3... b6 {[%clk 0:03:01.5]}
4. e3 {[%clk 0:03:01.5]} 4... Bb7 {[%clk 0:03:02.4]} 5. d4 {[%clk 0:03:01.7]}
5... Be7 {[%clk 0:03:00.2]} 6. Nbd2 {[%clk 0:03:02.2]} 6... c5 {[%clk 0:03:00]}
7. Bd3 {[%clk 0:03:02.4]} 7... d5 {[%clk 0:03:00.5]} 8. O-O {[%clk 0:03:01.1]}
8... Nbd7 {[%clk 0:03:00.2]} 9. Ne5 {[%clk 0:02:59.9]} 9... O-O {[%clk
0:02:52.4]} 10. f4 {[%clk 0:02:59.2]} 10... Ne4 {[%clk 0:02:52.6]} 11. c4 {[%clk
0:02:40.3]} 11... Nxe5 {[%clk 0:02:43.2]} 12. fxe5 {[%clk 0:02:35.5]} 12... Nxd2
{[%clk 0:02:40]} 13. Qxd2 {[%clk 0:02:34.1]} 13... f6 {[%clk 0:02:40.7]} 14. Qc2
{[%clk 0:02:16.7]} 14... f5 {[%clk 0:02:35.7]} 15. cxd5 {[%clk 0:02:14.5]} 15...
Qxd5 {[%clk 0:02:34.5]} 16. Bc4 {[%clk 0:02:08.5]} 16... Qc6 {[%clk 0:02:31.1]}
17. a4 {[%clk 0:01:52.4]} 17... a6 {[%clk 0:02:29.3]} 18. Qe2 {[%clk 0:01:46.8]}
18... Kh8 {[%clk 0:02:24.4]} 19. Rad1 {[%clk 0:01:42.9]} 19... Rfd8 {[%clk
0:02:20.7]} 20. Qf3 {[%clk 0:01:30.4]} 20... Qxf3 {[%clk 0:02:12.8]} 21. gxf3
{[%clk 0:01:30.3]} 21... Bd5 {[%clk 0:02:13.6]} 22. Bxd5 {[%clk 0:01:26.6]}
22... Rxd5 {[%clk 0:02:14.5]} 23. e4 {[%clk 0:01:26.3]} 23... fxe4 {[%clk
0:01:46.8]} 24. fxe4 {[%clk 0:01:26.2]} 24... Rxd4 {[%clk 0:01:47.7]} 25. Bxd4
{[%clk 0:01:07.7]} 25... cxd4 {[%clk 0:01:48.6]} 26. Rc1 {[%clk 0:01:05.8]}
26... Bc5 {[%clk 0:01:46.9]} 27. Rfd1 {[%clk 0:01:01]} 27... a5 {[%clk
0:01:43.3]} 28. Kg2 {[%clk 0:00:57.8]} 28... h6 {[%clk 0:01:31.5]} 29. Rf1
{[%clk 0:00:51]} 29... Kg8 {[%clk 0:01:30.1]} 30. Kf3 {[%clk 0:00:41.9]} 30...
Rd8 {[%clk 0:01:28.3]} 31. Rfd1 {[%clk 0:00:28.9]} 31... Rf8+ {[%clk 0:01:16.3]}
32. Ke2 {[%clk 0:00:28]} 32... Rf4 {[%clk 0:01:16.2]} 33. Kd3 {[%clk 0:00:28.1]}
33... Rf3+ {[%clk 0:01:04.3]} 34. Kc4 {[%clk 0:00:26.4]} 34... Rf2 {[%clk
0:01:04.2]} 35. h4 {[%clk 0:00:22.1]} 35... Rf4 {[%clk 0:01:03.9]} 36. Rg1
{[%clk 0:00:17.1]} 36... Rxe4 {[%clk 0:00:38.1]} 37. Rg6 {[%clk 0:00:17.1]}
37... Kf7 {[%clk 0:00:37.2]} 38. Rg3 {[%clk 0:00:11.3]} 38... Rxh4 {[%clk
0:00:26.4]} 39. Rf1+ {[%clk 0:00:11]} 39... Kg8 {[%clk 0:00:25.3]} 40. Kd3
{[%clk 0:00:08.2]} 40... Rh5 {[%clk 0:00:22.2]} 41. Rfg1 {[%clk 0:00:05.6]}
41... Rxe5 {[%clk 0:00:18.5]} 42. Rxg7+ {[%clk 0:00:05.3]} 42... Kf8 {[%clk
0:00:19.3]} 43. Rg8+ {[%clk 0:00:05.9]} 43... Ke7 {[%clk 0:00:19.4]} 44. R1g7+
{[%clk 0:00:06.6]} 44... Kd6 {[%clk 0:00:19.4]} 45. Rd8+ {[%clk 0:00:07.3]}
45... Kc6 {[%clk 0:00:20]} 46. Rc8+ {[%clk 0:00:07.8]} 46... Kd6 {[%clk
0:00:16.8]} 47. Rd8+ {[%clk 0:00:08.2]} 47... Kc6 {[%clk 0:00:15.9]} 48. Rdd7
{[%clk 0:00:05.4]} 48... Re3+ {[%clk 0:00:14.4]} 49. Kd2 {[%clk 0:00:05.9]}
49... Rxb3 {[%clk 0:00:13.9]} 50. Rc7+ {[%clk 0:00:03.5]} 50... Kd5 {[%clk
0:00:14]} 51. Rgd7+ {[%clk 0:00:03.7]} 51... Kc4 {[%clk 0:00:14.7]} 52. Rh7
{[%clk 0:00:03.3]} 52... Rb2+ {[%clk 0:00:11.5]} 53. Kc1 {[%clk 0:00:03.7]}
53... Ra2 {[%clk 0:00:09.9]} 54. Rxh6 {[%clk 0:00:03.8]} 54... Rxa4 {[%clk
0:00:09.8]} 55. Rh3 {[%clk 0:00:03.7]} 55... Ra1+ {[%clk 0:00:08]} 56. Kb2
{[%clk 0:00:04.1]} 56... Re1 {[%clk 0:00:08.1]} 57. Rh6 {[%clk 0:00:04.5]} 57...
e5 {[%clk 0:00:08.1]} 58. Rg7 {[%clk 0:00:04.4]} 58... e4 {[%clk 0:00:08]} 59.
Rg4 {[%clk 0:00:04.3]} 59... e3 {[%clk 0:00:08]} 60. Rh2 {[%clk 0:00:04.3]}
60... Rd1 {[%clk 0:00:06.6]} 61. Rc2+ {[%clk 0:00:04.6]} 61... Kb5 {[%clk
0:00:06]} 62. Re2 {[%clk 0:00:04.3]} 62... Rf1 {[%clk 0:00:06]} 63. Re4 {[%clk
0:00:03.5]} 63... Rf2 {[%clk 0:00:05.1]} 64. Rxf2 {[%clk 0:00:03.1]} 64... exf2
{[%clk 0:00:06]} 65. Rf4 {[%clk 0:00:04]} 65... d3 {[%clk 0:00:06.5]} 66. Kc3
{[%clk 0:00:04.7]} 66... a4 {[%clk 0:00:04.6]} 67. Kxd3 {[%clk 0:00:05.4]} 67...
a3 {[%clk 0:00:05.3]} 68. Kc2 {[%clk 0:00:06.1]} 68... Kc6 {[%clk 0:00:04.9]}
69. Kb3 {[%clk 0:00:06.8]} 69... Kd5 {[%clk 0:00:05.3]} 70. Kc2 {[%clk
0:00:04.1]} 70... Ke5 {[%clk 0:00:05.5]} 71. Rf7 {[%clk 0:00:03.5]} 71... Ke4
{[%clk 0:00:05.8]} 72. Rf6 {[%clk 0:00:02.4]} 72... Ke3 {[%clk 0:00:05.3]} 73.
Kb3 {[%clk 0:00:00.7]} 73... Ke2 {[%clk 0:00:05.2]} 74. Re6+ {[%clk 0:00:01.2]}
74... Be3 {[%clk 0:00:05]} 75. Rf6 {[%clk 0:00:02.1]} 75... f1=Q {[%clk
0:00:03.3]} 76. Rxf1 {[%clk 0:00:03]} 76... Kxf1 {[%clk 0:00:04.2]} 77. Kxa3
{[%clk 0:00:03.9]} 77... Bc5+ {[%clk 0:00:04.9]} 78. Ka4 {[%clk 0:00:04]} 78...
Ke2 {[%clk 0:00:05.8]} 79. Kb5 {[%clk 0:00:04.9]} 79... Ke3 {[%clk 0:00:06.7]}
80. Ka4 {[%clk 0:00:05.7]} 80... Ke4 {[%clk 0:00:07.6]} 81. Kb5 {[%clk
0:00:03.8]} 81... Ke5 {[%clk 0:00:08.5]} 82. Ka4 {[%clk 0:00:04.7]} 82... Kd6
{[%clk 0:00:08.8]} 83. Kb5 {[%clk 0:00:05.6]} 83... Kc7 {[%clk 0:00:09.7]} 84.
Ka4 {[%clk 0:00:06.4]} 84... Kc6 {[%clk 0:00:10.6]} 85. Kb3 {[%clk 0:00:06.7]}
85... b5 {[%clk 0:00:11.5]} 86. Kc3 {[%clk 0:00:07.2]} 86... Kb6 {[%clk
0:00:12.4]} 87. Kb3 {[%clk 0:00:08.1]} 87... b4 {[%clk 0:00:13.2]} 88. Kc2
{[%clk 0:00:08.9]} 88... Kb5 {[%clk 0:00:14.1]} 89. Kb3 {[%clk 0:00:09.8]} 89...
Bd6 {[%clk 0:00:14]} 90. Kb2 {[%clk 0:00:10.7]} 90... Kc4 {[%clk 0:00:14.9]} 91.
Kc2 {[%clk 0:00:11.2]} 91... b3+ {[%clk 0:00:15.8]} 92. Kb2 {[%clk 0:00:11.9]}
92... Be5+ {[%clk 0:00:16.7]} 93. Kb1 {[%clk 0:00:12.6]} 93... Kc3 {[%clk
0:00:17.6]} 94. Kc1 {[%clk 0:00:12.9]} 94... b2+ {[%clk 0:00:17.2]} 95. Kb1
{[%clk 0:00:13.6]} 95... Bf6 {[%clk 0:00:18.1]} 96. Ka2 {[%clk 0:00:13.3]} 96...
Kc2 {[%clk 0:00:19]} 0-1

[Event "Late-Titled-Tuesday-Blitz-March-19-2024"]
[Site "Chess.com"]
[Date "2024.03.19"]
[Round "6"]
[White "Payyappat"]
[Black "mirochka"]
[Result "1/2-1/2"]
[WhiteElo "2506"]
[BlackElo "2303"]
[TimeControl "180+1"]
[EndTime "15:07:51 PDT"]
[Termination "Game drawn - insufficient material"]

1. e4 {[%clk 0:03:00.9]} 1... c5 {[%clk 0:02:59.6]} 2. Nf3 {[%clk 0:02:59.8]}
2... e6 {[%clk 0:02:58.2]} 3. d4 {[%clk 0:03:00.7]} 3... cxd4 {[%clk 0:02:58.6]}
4. Nxd4 {[%clk 0:03:01.6]} 4... a6 {[%clk 0:02:59]} 5. c4 {[%clk 0:02:57.8]}
5... Nf6 {[%clk 0:02:56.2]} 6. Nc3 {[%clk 0:02:56.5]} 6... Bb4 {[%clk
0:02:55.7]} 7. Bd3 {[%clk 0:02:55.6]} 7... Nc6 {[%clk 0:02:54.6]} 8. Be3 {[%clk
0:02:54.1]} 8... d5 {[%clk 0:02:43.4]} 9. cxd5 {[%clk 0:02:51.5]} 9... exd5
{[%clk 0:02:43.2]} 10. O-O {[%clk 0:02:37.8]} 10... Bxc3 {[%clk 0:02:32.9]} 11.
bxc3 {[%clk 0:02:36.8]} 11... dxe4 {[%clk 0:02:30.3]} 12. Bc4 {[%clk 0:02:34.9]}
12... O-O {[%clk 0:02:25.7]} 13. Nxc6 {[%clk 0:02:32.9]} 13... bxc6 {[%clk
0:02:23.7]} 14. Bc5 {[%clk 0:02:32.3]} 14... Re8 {[%clk 0:02:20.8]} 15. Qb3
{[%clk 0:02:29.9]} 15... Be6 {[%clk 0:02:18.6]} 16. Bxe6 {[%clk 0:02:26.6]}
16... Rxe6 {[%clk 0:02:17.4]} 17. Rad1 {[%clk 0:02:26]} 17... Qe8 {[%clk
0:02:16.1]} 18. Rd2 {[%clk 0:02:21.4]} 18... Nd5 {[%clk 0:02:15.9]} 19. c4
{[%clk 0:02:16.1]} 19... Nf4 {[%clk 0:02:15.3]} 20. Rfd1 {[%clk 0:02:11.4]}
20... Rg6 {[%clk 0:02:04.5]} 21. Bd6 {[%clk 0:01:40.1]} 21... Nxg2 {[%clk
0:01:58.3]} 22. Bg3 {[%clk 0:01:38.5]} 22... Nh4 {[%clk 0:01:50.8]} 23. Rd7
{[%clk 0:01:36.4]} 23... Nf3+ {[%clk 0:01:46.8]} 24. Kf1 {[%clk 0:01:34.7]}
24... h5 {[%clk 0:01:43.1]} 25. Qb6 {[%clk 0:01:25.8]} 25... Kh7 {[%clk
0:01:22.8]} 26. Qc5 {[%clk 0:01:14.6]} 26... Rg5 {[%clk 0:01:12.5]} 27. Qd6
{[%clk 0:00:43.8]} 27... Qe6 {[%clk 0:00:56.5]} 28. Qxe6 {[%clk 0:00:34.5]}
28... fxe6 {[%clk 0:00:56.4]} 29. h4 {[%clk 0:00:34]} 29... Rc5 {[%clk
0:00:55.4]} 30. Re7 {[%clk 0:00:21.6]} 30... Rxc4 {[%clk 0:00:54.5]} 31. Rdd7
{[%clk 0:00:19.4]} 31... Rc1+ {[%clk 0:00:46.4]} 32. Kg2 {[%clk 0:00:18.8]}
32... Rg1+ {[%clk 0:00:44.8]} 33. Kh3 {[%clk 0:00:18.5]} 33... Rg8 {[%clk
0:00:42.3]} 34. Rxe6 {[%clk 0:00:18.4]} 34... Re1 {[%clk 0:00:40.9]} 35. Bf4
{[%clk 0:00:18.3]} 35... Rh1+ {[%clk 0:00:28.3]} 36. Kg2 {[%clk 0:00:17.8]}
36... Rg1+ {[%clk 0:00:27.2]} 37. Kh3 {[%clk 0:00:18.1]} 37... Rg6 {[%clk
0:00:26]} 38. Rxe4 {[%clk 0:00:14.5]} 38... Rf8 {[%clk 0:00:21.8]} 39. Bg3
{[%clk 0:00:12.4]} 39... Kh6 {[%clk 0:00:19.2]} 40. Rd3 {[%clk 0:00:10.8]} 40...
c5 {[%clk 0:00:15.9]} 41. Ree3 {[%clk 0:00:10.8]} 41... Nd4 {[%clk 0:00:15.2]}
42. Re5 {[%clk 0:00:10.2]} 42... Nf5 {[%clk 0:00:12.9]} 43. Rxc5 {[%clk
0:00:06.4]} 43... Nxg3 {[%clk 0:00:11.2]} 44. fxg3 {[%clk 0:00:07.3]} 44... Rf2
{[%clk 0:00:10.2]} 45. Rdd5 {[%clk 0:00:07.1]} 45... Kh7 {[%clk 0:00:08.1]} 46.
Rxh5+ {[%clk 0:00:07.6]} 46... Kg8 {[%clk 0:00:08.4]} 47. Rhf5 {[%clk
0:00:07.7]} 47... Re2 {[%clk 0:00:05.3]} 48. Rc8+ {[%clk 0:00:06.8]} 48... Kh7
{[%clk 0:00:05.5]} 49. Rh5+ {[%clk 0:00:07.1]} 49... Rh6 {[%clk 0:00:06.1]} 50.
Rxh6+ {[%clk 0:00:07.2]} 50... gxh6 {[%clk 0:00:05.8]} 51. Rc7+ {[%clk
0:00:07.1]} 51... Kg8 {[%clk 0:00:04.9]} 52. Rc6 {[%clk 0:00:07.6]} 52... Kg7
{[%clk 0:00:03.4]} 53. Rxa6 {[%clk 0:00:07.7]} 53... h5 {[%clk 0:00:03.8]} 54.
Ra5 {[%clk 0:00:07.7]} 54... Kg6 {[%clk 0:00:03.6]} 55. Ra8 {[%clk 0:00:08.3]}
55... Rb2 {[%clk 0:00:02.8]} 56. a4 {[%clk 0:00:08.7]} 56... Ra2 {[%clk
0:00:03.3]} 57. a5 {[%clk 0:00:09.3]} 57... Kg7 {[%clk 0:00:03.6]} 58. a6 {[%clk
0:00:10.2]} 58... Kh7 {[%clk 0:00:01.8]} 59. a7 {[%clk 0:00:11.1]} 59... Kg7
{[%clk 0:00:02.2]} 60. g4 {[%clk 0:00:09.9]} 60... Ra3+ {[%clk 0:00:01.9]} 61.
Kg2 {[%clk 0:00:10.3]} 61... hxg4 {[%clk 0:00:02.6]} 62. h5 {[%clk 0:00:10.5]}
62... Kh7 {[%clk 0:00:02.9]} 63. h6 {[%clk 0:00:10.8]} 63... Ra6 {[%clk
0:00:02.1]} 64. Kg3 {[%clk 0:00:11.2]} 64... Ra4 {[%clk 0:00:01.9]} 65. Kh4
{[%clk 0:00:11.1]} 65... g3+ {[%clk 0:00:01.5]} 66. Kxg3 {[%clk 0:00:11.5]}
66... Ra3+ {[%clk 0:00:01.7]} 67. Kf4 {[%clk 0:00:11.8]} 67... Ra4+ {[%clk
0:00:02.2]} 68. Ke3 {[%clk 0:00:12.2]} 68... Ra5 {[%clk 0:00:02.2]} 69. Kd3
{[%clk 0:00:12.6]} 69... Ra6 {[%clk 0:00:02.3]} 70. Kc4 {[%clk 0:00:13.3]} 70...
Ra1 {[%clk 0:00:02]} 71. Kb5 {[%clk 0:00:13.8]} 71... Rb1+ {[%clk 0:00:02.2]}
72. Kc6 {[%clk 0:00:14.4]} 72... Rc1+ {[%clk 0:00:02.6]} 73. Kd5 {[%clk
0:00:15]} 73... Rd1+ {[%clk 0:00:03]} 74. Ke4 {[%clk 0:00:15.5]} 74... Ra1
{[%clk 0:00:03]} 75. Kf5 {[%clk 0:00:16.1]} 75... Rf1+ {[%clk 0:00:02.8]} 76.
Ke6 {[%clk 0:00:16.6]} 76... Re1+ {[%clk 0:00:03]} 77. Kf7 {[%clk 0:00:17.2]}
77... Rf1+ {[%clk 0:00:03.4]} 78. Ke7 {[%clk 0:00:17.7]} 78... Re1+ {[%clk
0:00:03.7]} 79. Kf6 {[%clk 0:00:18.6]} 79... Rf1+ {[%clk 0:00:03.9]} 80. Kg5
{[%clk 0:00:19.5]} 80... Rg1+ {[%clk 0:00:03.8]} 81. Kf4 {[%clk 0:00:20.4]}
81... Rf1+ {[%clk 0:00:04.2]} 82. Ke3 {[%clk 0:00:21.3]} 82... Ra1 {[%clk
0:00:04.4]} 83. Ke2 {[%clk 0:00:22.2]} 83... Ra2+ {[%clk 0:00:04.4]} 84. Kd1
{[%clk 0:00:21.8]} 84... Ra1+ {[%clk 0:00:04.8]} 85. Kc2 {[%clk 0:00:22]} 85...
Ra2+ {[%clk 0:00:05.2]} 86. Kb3 {[%clk 0:00:22.4]} 86... Ra6 {[%clk 0:00:05.7]}
87. Kb4 {[%clk 0:00:23.3]} 87... Ra1 {[%clk 0:00:05.9]} 88. Kc3 {[%clk
0:00:23.6]} 88... Ra6 {[%clk 0:00:05.3]} 89. Kb2 {[%clk 0:00:24.5]} 89... Ra5
{[%clk 0:00:05.3]} 90. Kb3 {[%clk 0:00:24.9]} 90... Ra6 {[%clk 0:00:05.7]} 91.
Kc4 {[%clk 0:00:25.6]} 91... Ra1 {[%clk 0:00:05.9]} 92. Kd5 {[%clk 0:00:26.5]}
92... Rd1+ {[%clk 0:00:05.9]} 93. Kc4 {[%clk 0:00:27.4]} 93... Rc1+ {[%clk
0:00:06.3]} 94. Kd3 {[%clk 0:00:28.3]} 94... Ra1 {[%clk 0:00:06.6]} 95. Kc4
{[%clk 0:00:29.2]} 95... Ra2 {[%clk 0:00:06.7]} 96. Kb5 {[%clk 0:00:29.8]} 96...
Ra1 {[%clk 0:00:06.9]} 97. Kc5 {[%clk 0:00:29.6]} 97... Rc1+ {[%clk 0:00:07.1]}
98. Kd4 {[%clk 0:00:30.3]} 98... Rd1+ {[%clk 0:00:07.4]} 99. Ke3 {[%clk
0:00:31.2]} 99... Ra1 {[%clk 0:00:07.6]} 100. Rb8 {[%clk 0:00:31.7]} 100... Rxa7
{[%clk 0:00:07]} 101. Rc8 {[%clk 0:00:31.9]} 101... Kxh6 {[%clk 0:00:07.3]} 102.
Kd4 {[%clk 0:00:32.4]} 102... Ra5 {[%clk 0:00:07.4]} 103. Kc4 {[%clk 0:00:32.5]}
103... Rg5 {[%clk 0:00:07.2]} 104. Rc6+ {[%clk 0:00:32.5]} 104... Kh5 {[%clk
0:00:08.1]} 105. Rc5 {[%clk 0:00:33.4]} 105... Rxc5+ {[%clk 0:00:06.8]} 106.
Kxc5 {[%clk 0:00:34.3]} 1/2-1/2

[Event "Late-Titled-Tuesday-Blitz-March-19-2024"]
[Site "Chess.com"]
[Date "2024.03.19"]
[Round "6"]
[White "Yeritsyaan"]
[Black "Legendinunknown"]
[Result "1-0"]
[WhiteElo "2684"]
[BlackElo "2819"]
[TimeControl "180+1"]
[EndTime "15:08:03 PDT"]
[Termination "Yeritsyaan won by resignation"]

1. e4 {[%clk 0:02:59.5]} 1... e5 {[%clk 0:02:59.4]} 2. Nf3 {[%clk 0:02:59.1]}
2... Nc6 {[%clk 0:02:57.4]} 3. d4 {[%clk 0:02:59.4]} 3... exd4 {[%clk
0:02:56.7]} 4. Nxd4 {[%clk 0:03:00.3]} 4... Nf6 {[%clk 0:02:55.3]} 5. Nc3 {[%clk
0:02:53.3]} 5... Bb4 {[%clk 0:02:53.9]} 6. Nxc6 {[%clk 0:02:53.4]} 6... bxc6
{[%clk 0:02:51.9]} 7. Bd3 {[%clk 0:02:53.7]} 7... O-O {[%clk 0:02:46.6]} 8. O-O
{[%clk 0:02:53.6]} 8... d5 {[%clk 0:02:45.6]} 9. Bd2 {[%clk 0:02:53.2]} 9... Rb8
{[%clk 0:02:43.6]} 10. h3 {[%clk 0:02:48.5]} 10... h6 {[%clk 0:02:40.6]} 11. Re1
{[%clk 0:02:47.1]} 11... Be6 {[%clk 0:02:34]} 12. exd5 {[%clk 0:02:38.8]} 12...
cxd5 {[%clk 0:02:32.8]} 13. Qf3 {[%clk 0:02:38.2]} 13... Be7 {[%clk 0:02:27]}
14. b3 {[%clk 0:02:33]} 14... c6 {[%clk 0:02:17.2]} 15. Rad1 {[%clk 0:02:32]}
15... Nd7 {[%clk 0:02:14.2]} 16. Bf4 {[%clk 0:01:59.5]} 16... Rb4 {[%clk
0:02:04.8]} 17. a3 {[%clk 0:01:55.8]} 17... Rb7 {[%clk 0:01:59.8]} 18. Na4
{[%clk 0:01:47.4]} 18... Bxa3 {[%clk 0:01:54.4]} 19. Ba6 {[%clk 0:01:47.6]}
19... Rb8 {[%clk 0:01:50.7]} 20. Bxb8 {[%clk 0:01:42.4]} 20... Qxb8 {[%clk
0:01:51.6]} 21. Bd3 {[%clk 0:01:41.6]} 21... Ne5 {[%clk 0:01:48.9]} 22. Qe3
{[%clk 0:01:31.3]} 22... Nxd3 {[%clk 0:01:47]} 23. Qxd3 {[%clk 0:01:28.2]} 23...
Bd6 {[%clk 0:01:46.9]} 24. Qd4 {[%clk 0:01:23.5]} 24... Bc8 {[%clk 0:01:29.2]}
25. Nc5 {[%clk 0:01:21.3]} 25... Qb6 {[%clk 0:01:25.9]} 26. b4 {[%clk 0:01:15]}
26... a5 {[%clk 0:01:24.7]} 27. c3 {[%clk 0:01:13]} 27... axb4 {[%clk
0:01:24.5]} 28. cxb4 {[%clk 0:01:12.6]} 28... Bf5 {[%clk 0:01:24.3]} 29. Ne6
{[%clk 0:01:02.8]} 29... Qxd4 {[%clk 0:01:14.2]} 30. Nxd4 {[%clk 0:01:03.7]}
30... Bd7 {[%clk 0:01:14]} 31. Rb1 {[%clk 0:01:02.6]} 31... Rb8 {[%clk 0:01:12]}
32. Rec1 {[%clk 0:01:02.2]} 32... Rb6 {[%clk 0:01:05.4]} 33. Rb3 {[%clk
0:00:52]} 33... Kf8 {[%clk 0:01:02.8]} 34. h4 {[%clk 0:00:45.8]} 34... h5 {[%clk
0:00:59]} 35. g3 {[%clk 0:00:46]} 35... Ke7 {[%clk 0:00:56.3]} 36. Rbc3 {[%clk
0:00:41.9]} 36... Bxb4 {[%clk 0:00:36.1]} 37. Nxc6+ {[%clk 0:00:42.3]} 37... Kd6
{[%clk 0:00:36.7]} 38. Nxb4 {[%clk 0:00:42.5]} 38... Rxb4 {[%clk 0:00:37.6]} 39.
Rf3 {[%clk 0:00:37]} 39... Be6 {[%clk 0:00:35.8]} 40. Ra3 {[%clk 0:00:35.9]}
40... Rb6 {[%clk 0:00:31.3]} 41. Rd1 {[%clk 0:00:32.2]} 41... Bf5 {[%clk
0:00:27.4]} 42. f3 {[%clk 0:00:29.5]} 42... Rb2 {[%clk 0:00:26.4]} 43. Ra5
{[%clk 0:00:26.9]} 43... Be6 {[%clk 0:00:25.5]} 44. Ra3 {[%clk 0:00:26.5]} 44...
g6 {[%clk 0:00:22.5]} 45. Rad3 {[%clk 0:00:26.3]} 45... Kc5 {[%clk 0:00:22]} 46.
R3d2 {[%clk 0:00:25.5]} 46... Rb3 {[%clk 0:00:21.1]} 47. Kf2 {[%clk 0:00:25.6]}
47... Rb4 {[%clk 0:00:20.2]} 48. Rc1+ {[%clk 0:00:24.4]} 48... Kd6 {[%clk
0:00:19]} 49. Rcd1 {[%clk 0:00:22]} 49... Ke5 {[%clk 0:00:17.6]} 50. Ke3 {[%clk
0:00:18.6]} 50... Kd6 {[%clk 0:00:16.8]} 51. Rd4 {[%clk 0:00:18.4]} 51... Rb3+
{[%clk 0:00:16.5]} 52. Kf4 {[%clk 0:00:18.1]} 52... f6 {[%clk 0:00:15.8]} 53.
R1d3 {[%clk 0:00:14.4]} 53... Rb2 {[%clk 0:00:15.9]} 54. Rd2 {[%clk 0:00:14.7]}
54... Rb3 {[%clk 0:00:15.6]} 55. R2d3 {[%clk 0:00:10.8]} 55... Rb6 {[%clk
0:00:15.3]} 56. g4 {[%clk 0:00:11.1]} 56... Rb1 {[%clk 0:00:13.1]} 57. g5 {[%clk
0:00:07.8]} 57... fxg5+ {[%clk 0:00:09.1]} 58. Kxg5 {[%clk 0:00:07.6]} 58...
Rg1+ {[%clk 0:00:09.8]} 59. Kf6 {[%clk 0:00:07.5]} 59... Rg2 {[%clk 0:00:08.5]}
60. Re3 {[%clk 0:00:07.3]} 60... Bf5 {[%clk 0:00:08]} 61. Re5 {[%clk 0:00:05.9]}
61... Kc5 {[%clk 0:00:07.5]} 62. Rdxd5+ {[%clk 0:00:05.8]} 62... Kc6 {[%clk
0:00:07.8]} 63. Rd1 {[%clk 0:00:04.7]} 63... Rg3 {[%clk 0:00:06.2]} 64. Re3
{[%clk 0:00:04.5]} 64... Rg2 {[%clk 0:00:04.5]} 65. Rc3+ {[%clk 0:00:04.6]}
65... Kb5 {[%clk 0:00:05.1]} 66. Rd8 {[%clk 0:00:04.5]} 66... Kb4 {[%clk
0:00:05.5]} 67. Rc7 {[%clk 0:00:04.2]} 67... Kb5 {[%clk 0:00:05.5]} 68. Rb8+
{[%clk 0:00:04.4]} 68... Ka6 {[%clk 0:00:05.7]} 69. Rc1 {[%clk 0:00:05]} 69...
Ka7 {[%clk 0:00:05.6]} 70. Rb3 {[%clk 0:00:04.2]} 70... Ra2 {[%clk 0:00:06.1]}
71. Rcc3 {[%clk 0:00:04.1]} 71... Ra6+ {[%clk 0:00:06.2]} 72. Kg5 {[%clk
0:00:04.1]} 72... Rd6 {[%clk 0:00:06.9]} 73. Rb4 {[%clk 0:00:04.2]} 73... Ra6
{[%clk 0:00:06.4]} 74. Rc7+ {[%clk 0:00:04.6]} 74... Ka8 {[%clk 0:00:06.3]} 75.
Rc1 {[%clk 0:00:04.4]} 75... Ka7 {[%clk 0:00:06.2]} 76. Rf4 {[%clk 0:00:02.5]}
76... Ra5 {[%clk 0:00:06.2]} 77. Re1 {[%clk 0:00:02.7]} 77... Kb6 {[%clk
0:00:05.8]} 78. Kh6 {[%clk 0:00:03.4]} 78... Kc6 {[%clk 0:00:06]} 79. Rd4 {[%clk
0:00:03.7]} 79... Rc5 {[%clk 0:00:05.4]} 80. Rd2 {[%clk 0:00:04.3]} 80... Rc3
{[%clk 0:00:05.4]} 81. f4 {[%clk 0:00:04.1]} 81... Rc4 {[%clk 0:00:05.1]} 82.
Rf2 {[%clk 0:00:04.1]} 82... Kd6 {[%clk 0:00:05]} 83. Kg5 {[%clk 0:00:04.4]}
83... Rd4 {[%clk 0:00:04.8]} 84. Re5 {[%clk 0:00:04.7]} 84... Rd5 {[%clk
0:00:05.4]} 85. Rxd5+ {[%clk 0:00:04.8]} 85... Kxd5 {[%clk 0:00:06.3]} 86. Re2
{[%clk 0:00:05.1]} 86... Bb1 {[%clk 0:00:06.3]} 87. Re5+ {[%clk 0:00:06]} 87...
Kd6 {[%clk 0:00:06.3]} 88. Re3 {[%clk 0:00:06.2]} 88... Bf5 {[%clk 0:00:06.4]}
89. Rc3 {[%clk 0:00:06]} 89... Kd5 {[%clk 0:00:06.1]} 90. Re3 {[%clk 0:00:06.4]}
90... Kd6 {[%clk 0:00:06.2]} 91. Re8 {[%clk 0:00:06.8]} 91... Bb1 {[%clk
0:00:05.7]} 92. Rg8 {[%clk 0:00:07.5]} 92... Ke6 {[%clk 0:00:04.8]} 93. Rxg6+
{[%clk 0:00:08.4]} 93... Kf7 {[%clk 0:00:05.7]} 94. Rh6 {[%clk 0:00:08.4]} 94...
Bc2 {[%clk 0:00:05.8]} 95. Rxh5 {[%clk 0:00:09.3]} 1-0